[Event "EYCC Open-U18 2019"]
[Site "Bratislava"]
[Date "2019.08.04"]
[Round "3.40"]
[White "Storme, Isak"]
[Black "Triantos, Konstantinos"]
[Result "0-1"]
[ECO "E20"]
[WhiteElo "2330"]
[BlackElo "2129"]
[Annotator "NA"]
[PlyCount "100"]
[EventDate "2019.08.02"]
[EventType "swiss"]
[EventCountry "SVK"]
[SourceTitle "playchess.com"]
[Source "ChessBase"]
[SourceQuality "1"]
[TimeControl "40/5400+30:1800+30"]

1. d4 {[%emt 0:00:00]} Nf6 {[%emt 0:00:00]} 2. c4 {[%emt 0:00:00]} e6 {[%emt 0:00:00]} 3. Nc3 {[%emt 0:00:00]} Bb4 {[%emt 0:00:00]} 4. f3 {[%emt 0:00:00]} d5 {[%emt 0:06:21]} 5. a3 {[%emt 0:00:10]} Bxc3+ {[%emt 0:10:13]} 6. bxc3 {[%emt 0:00:18]} O-O {[%emt 0:00:34]} 7. e3 {[%emt 0:01:55]} Nc6 {[%emt 0:00:46]} 8. cxd5 {[%emt 0:02:31]} exd5 {[%emt 0:01:03]} 9. Bd3 {[%emt 0:00:55]} Re8 {[%emt 0:03:19]} 10. Ne2 {[%emt 0:01:33]} Ne7 {[%emt 0:05:04]} 11. e4 {[%emt 0:03:15]} dxe4 {[%emt 0:02:22]} 12. fxe4 {[%emt 0:00:08]} Ng6 {[%emt 0:02:37]} 13. e5 {[%emt 0:03:03]} Nd5 {[%emt 0:00:31]} 14. O-O {[%emt 0:05:52]} Nxc3 {[%emt 0:09:12]} 15. Nxc3 {[%emt 0:02:51]} Qxd4+ {[%emt 0:00:03]} 16. Rf2 {[%emt 0:05:48]} Qxc3 {[%emt 0:00:02]} 17. Bb2 {[%emt 0:01:17]} Qc5 {[%emt 0:07:00]} 18. Rc1 {[%emt 0:10:26]} Qe7 {[%emt 0:03:53]} 19. Qb3 {[%emt 0:08:05]} c6 {[%emt 0:02:47]} 20. e6 {[%emt 0:06:37]} Bxe6 {[%emt 0:00:09]} 21. Qc3 {[%emt 0:00:24]} f6 {[%emt 0:02:17]} 22. Re1 {[%emt 0:07:18]} Qf7 {[%emt 0:00:48]} 23. h4 {[%emt 0:08:06]} Bd5 {[%emt 0:02:52]} 24. h5 {[%emt 0:04:36]} Ne5 {[%emt 0:03:44]} 25. Be2 {[%emt 0:01:19]} h6 {[%emt 0:02:22]} 26. Qg3 {[%emt 0:02:11]} Kh8 {[%emt 0:03:23]} 27. Ref1 {[%emt 0:01:22]} Qe6 {[%emt 0:04:28]} 28. Kh1 {[%emt 0:04:34]} Rad8 {[%emt 0:03:43]} 29. Rf4 {[%emt 0:04:38]} Rf8 {[%emt 0:01:49]} 30. Bg4 {[%emt 0:02:15]} Nxg4 {[%emt 0:01:20]} 31. Rxg4 {[%emt 0:00:08]} Rd7 {[%emt 0:01:01]} 32. Rg6 {[%emt 0:02:26]} Be4 {[%emt 0:02:32]} 33. Rg4 {[%emt 0:01:32]} Qd5 {[%emt 0:03:16]} 34. Qh4 {[%emt 0:01:17]} Bh7 {[%emt 0:05:16]} 35. Kh2 {[%emt 0:04:28]} Qb5 {[%emt 0:04:03]} 36. Rxf6 {[%emt 0:01:12]} Rxf6 {[%emt 0:02:17]} 37. Bxf6 {[%emt 0:00:10]} Qf5 {[%emt 0:03:10]} 38. Bc3 {[%emt 0:03:08]} Bg8 {[%emt 0:00:59]} 39. Qg3 {[%emt 0:01:33]} Be6 {[%emt 0:01:46]} 40. Bxg7+ {[%emt 0:00:00]} Kh7 {[%emt 0:00:00]} 41. Rf4 {[%emt 0:10:05]} Rxg7 {[%emt 0:02:18]} 42. Rxf5 {[%emt 0:00:10]} Rxg3 {[%emt 0:00:03]} 43. Re5 {[%emt 0:00:09]} Rxa3 {[%emt 0:03:51]} 44. Rxe6 {[%emt 0:00:05]} Rb3 {[%emt 0:00:19]} 45. Re7+ {[%emt 0:00:27]} Kg8 {[%emt 0:00:08]} 46. Re6 {[%emt 0:00:26]} Kg7 {[%emt 0:00:17]} 47. Re7+ {[%emt 0:00:21]} Kf6 {[%emt 0:01:00]} 48. Rh7 {[%emt 0:00:12]} Kg5 {[%emt 0:01:43]} 49. Rg7+ {[%emt 0:00:07]} Kxh5 {[%emt 0:00:16]} 50. g3 {[%emt 0:00:09]} a5 {[%emt 0:00:42]} 0-1

[Event "EYCC Open-U18 2019"]
[Site "Bratislava"]
[Date "2019.08.04"]
[Round "3.41"]
[White "Polczyk, Mikolaj"]
[Black "Tisaj, Domen"]
[Result "0-1"]
[ECO "B32"]
[WhiteElo "2111"]
[BlackElo "2232"]
[Annotator "NA"]
[PlyCount "112"]
[EventDate "2019.08.02"]
[EventType "swiss"]
[EventCountry "SVK"]
[SourceTitle "playchess.com"]
[Source "ChessBase"]
[SourceQuality "1"]
[TimeControl "40/5400+30:1800+30"]

1. e4 {[%emt 0:00:00]} c5 {[%emt 0:00:30]} 2. Nf3 {[%emt 0:00:00]} Nc6 {[%emt 0:00:36]} 3. d4 {[%emt 0:00:00]} cxd4 {[%emt 0:01:01]} 4. Nxd4 {[%emt 0:00:00]} e5 {[%emt 0:01:59]} 5. Nb5 {[%emt 0:00:02]} d6 {[%emt 0:00:15]} 6. N1c3 {[%emt 0:00:13]} a6 {[%emt 0:00:38]} 7. Na3 {[%emt 0:00:05]} b5 {[%emt 0:01:59]} 8. Nd5 {[%emt 0:00:21]} Nf6 {[%emt 0:00:15]} 9. Bg5 {[%emt 0:01:58]} Be7 {[%emt 0:00:18]} 10. Bxf6 {[%emt 0:00:08]} Bxf6 {[%emt 0:00:06]} 11. c4 {[%emt 0:00:11]} b4 {[%emt 0:00:06]} 12. Nc2 {[%emt 0:00:06]} a5 {[%emt 0:03:55]} 13. g3 {[%emt 0:01:04]} Bg5 {[%emt 0:00:38]} 14. h4 {[%emt 0:00:40]} Bh6 {[%emt 0:00:06]} 15. Bh3 {[%emt 0:02:43]} Bb7 {[%emt 0:03:56]} 16. Qh5 {[%emt 0:24:42]} Ne7 {[%emt 0:03:21]} 17. O-O {[%emt 0:18:27]} Nxd5 {[%emt 0:01:17]} 18. exd5 {[%emt 0:01:28]} O-O {[%emt 0:05:06]} 19. Bf5 {[%emt 0:08:11]} Qf6 {[%emt 0:09:43]} 20. Ne3 {[%emt 0:10:20]} Bc8 {[%emt 0:02:19]} 21. Bxc8 {[%emt 0:10:19]} Raxc8 {[%emt 0:01:04]} 22. Ng4 {[%emt 0:04:28]} Qg6 {[%emt 0:00:19]} 23. Qxg6 {[%emt 0:00:33]} hxg6 {[%emt 0:01:49]} 24. Nxh6+ {[%emt 0:00:50]} gxh6 {[%emt 0:00:06]} 25. b3 {[%emt 0:00:31]} a4 {[%emt 0:02:28]} 26. Rfc1 {[%emt 0:03:25]} a3 {[%emt 0:07:20]} 27. Re1 {[%emt 0:02:49]} f5 {[%emt 0:03:16]} 28. Kg2 {[%emt 0:03:02]} Kg7 {[%emt 0:06:59]} 29. f3 {[%emt 0:01:03]} Kf6 {[%emt 0:02:12]} 30. f4 {[%emt 0:04:32]} Rfe8 {[%emt 0:05:00]} 31. Kf2 {[%emt 0:01:07]} Re7 {[%emt 0:02:49]} 32. fxe5+ {[%emt 0:00:31]} dxe5 {[%emt 0:00:10]} 33. Rac1 {[%emt 0:00:11]} e4 {[%emt 0:04:32]} 34. c5 {[%emt 0:01:27]} Rec7 {[%emt 0:02:05]} 35. c6 {[%emt 0:00:15]} Ke5 {[%emt 0:00:10]} 36. Red1 {[%emt 0:00:21]} Kd6 {[%emt 0:04:33]} 37. Rc4 {[%emt 0:01:11]} Rb8 {[%emt 0:00:10]} 38. Rd2 {[%emt 0:00:41]} Rb5 {[%emt 0:00:05]} 39. Rcd4 {[%emt 0:00:08]} Rc5 {[%emt 0:00:01]} 40. Ke2 {[%emt 0:00:00]} g5 {[%emt 0:00:00]} 41. h5 {[%emt 0:08:29]} Re7 {[%emt 0:10:14]} 42. Rc4 {[%emt 0:04:44]} Rb5 {[%emt 0:04:29]} 43. Ke3 {[%emt 0:00:48]} Rc7 {[%emt 0:02:09]} 44. Rcd4 {[%emt 0:00:42]} Rc5 {[%emt 0:02:59]} 45. Ke2 {[%emt 0:00:10]} Rc8 {[%emt 0:00:09]} 46. g4 {[%emt 0:11:05]} f4 {[%emt 0:03:40]} 47. Rxe4 {[%emt 0:05:03]} Rxd5 {[%emt 0:01:05]} 48. Rxb4 {[%emt 0:01:21]} Re8+ {[%emt 0:01:24]} 49. Kd1 {[%emt 0:00:06]} Rxd2+ {[%emt 0:04:26]} 50. Kxd2 {[%emt 0:00:02]} f3 {[%emt 0:02:01]} 51. Rd4+ {[%emt 0:03:19]} Kxc6 {[%emt 0:00:19]} 52. Rd3 {[%emt 0:00:30]} Re2+ {[%emt 0:00:25]} 53. Kd1 {[%emt 0:00:33]} Rxa2 {[%emt 0:00:23]} 54. Rxf3 {[%emt 0:00:13]} Rg2 {[%emt 0:00:08]} 55. Rc3+ {[%emt 0:00:45]} Kb5 {[%emt 0:00:25]} 56. Rc1 {[%emt 0:00:38]} a2 {[%emt 0:00:12]} 0-1

[Event "EYCC Open-U18 2019"]
[Site "Bratislava"]
[Date "2019.08.04"]
[Round "3.42"]
[White "Jakab, Bela"]
[Black "Horak, Jan"]
[Result "1-0"]
[ECO "A46"]
[WhiteElo "2278"]
[BlackElo "2020"]
[Annotator "NA"]
[PlyCount "91"]
[EventDate "2019.08.02"]
[EventType "swiss"]
[EventCountry "SVK"]
[SourceTitle "playchess.com"]
[Source "ChessBase"]
[SourceQuality "1"]
[TimeControl "40/5400+30:1800+30"]

1. d4 {[%emt 0:00:00]} Nf6 {[%emt 0:00:00]} 2. Nf3 {[%emt 0:00:00]} c5 {[%emt 0:00:26]} 3. c3 {[%emt 0:00:00]} d5 {[%emt 0:00:40]} 4. a3 {[%emt 0:00:15]} cxd4 {[%emt 0:00:30]} 5. cxd4 {[%emt 0:00:05]} Nc6 {[%emt 0:01:23]} 6. Nc3 {[%emt 0:01:21]} Bf5 {[%emt 0:09:14]} 7. Bf4 {[%emt 0:01:11]} a6 {[%emt 0:04:03]} 8. e3 {[%emt 0:00:35]} e6 {[%emt 0:00:35]} 9. Bd3 {[%emt 0:01:10]} Bg6 {[%emt 0:01:10]} 10. Rc1 {[%emt 0:07:24]} Bd6 {[%emt 0:02:15]} 11. Bxd6 {[%emt 0:04:27]} Qxd6 {[%emt 0:00:13]} 12. O-O {[%emt 0:00:28]} O-O {[%emt 0:03:14]} 13. Bxg6 {[%emt 0:01:27]} hxg6 {[%emt 0:00:14]} 14. Na4 {[%emt 0:00:55]} Na5 {[%emt 0:06:18]} 15. Qd3 {[%emt 0:13:48]} Nc4 {[%emt 0:07:15]} 16. Rc2 {[%emt 0:01:41]} Rfc8 {[%emt 0:10:20]} 17. Rfc1 {[%emt 0:01:21]} b5 {[%emt 0:05:37]} 18. Nc5 {[%emt 0:12:01]} Nd7 {[%emt 0:02:44]} 19. Nxd7 {[%emt 0:13:05]} Qxd7 {[%emt 0:00:24]} 20. Ne5 {[%emt 0:00:39]} Qb7 {[%emt 0:05:30]} 21. Qd1 {[%emt 0:01:08]} Nxe5 {[%emt 0:07:20]} 22. dxe5 {[%emt 0:00:27]} Rc4 {[%emt 0:01:51]} 23. b3 {[%emt 0:01:05]} Rcc8 {[%emt 0:01:31]} 24. h3 {[%emt 0:02:00]} a5 {[%emt 0:03:38]} 25. Kh2 {[%emt 0:08:13]} Kh7 {[%emt 0:12:34]} 26. Qd3 {[%emt 0:03:08]} Rxc2 {[%emt 0:03:06]} 27. Qxc2 {[%emt 0:00:33]} a4 {[%emt 0:01:28]} 28. b4 {[%emt 0:00:33]} Rb8 {[%emt 0:00:30]} 29. Qc5 {[%emt 0:01:14]} Rd8 {[%emt 0:03:21]} 30. Rc3 {[%emt 0:07:09]} Rd7 {[%emt 0:00:56]} 31. Qd4 {[%emt 0:01:30]} Qb8 {[%emt 0:01:09]} 32. Rc5 {[%emt 0:01:26]} Rc7 {[%emt 0:00:40]} 33. Qc3 {[%emt 0:01:01]} Rxc5 {[%emt 0:00:25]} 34. bxc5 {[%emt 0:00:04]} f6 {[%emt 0:01:08]} 35. c6 {[%emt 0:00:10]} Qc7 {[%emt 0:00:00]} 36. f4 {[%emt 0:00:30]} g5 {[%emt 0:02:06]} 37. Qd3+ {[%emt 0:02:58]} Kh6 {[%emt 0:00:49]} 38. Qxb5 {[%emt 0:01:34]} gxf4 {[%emt 0:00:23]} 39. exf4 {[%emt 0:00:11]} Qa7 {[%emt 0:01:47]} 40. Qe2 {[%emt 0:00:00]} Qd4 {[%emt 0:00:00]} 41. Qg4 {[%emt 0:04:13]} Qd2 {[%emt 0:06:15]} 42. exf6 {[%emt 0:03:47]} gxf6 {[%emt 0:00:53]} 43. f5 {[%emt 0:00:09]} exf5 {[%emt 0:01:07]} 44. Qxf5 {[%emt 0:00:05]} Qc3 {[%emt 0:04:25]} 45. Qf4+ {[%emt 0:00:17]} Kh7 {[%emt 0:00:57]} 46. Qh4+ {[%emt 0:00:12]} 1-0

[Event "EYCC Open-U18 2019"]
[Site "Bratislava"]
[Date "2019.08.04"]
[Round "3.43"]
[White "Kizatbay, Abyl"]
[Black "Durica, Adam"]
[Result "1/2-1/2"]
[ECO "B10"]
[WhiteElo "2216"]
[BlackElo "1958"]
[Annotator "NA"]
[PlyCount "61"]
[EventDate "2019.08.02"]
[EventType "swiss"]
[EventCountry "SVK"]
[SourceTitle "playchess.com"]
[Source "ChessBase"]
[SourceQuality "1"]
[TimeControl "40/5400+30:1800+30"]

1. e4 {[%emt 0:00:00]} c6 {[%emt 0:00:22]} 2. Nc3 {[%emt 0:01:00]} d5 {[%emt 0:00:11]} 3. Nf3 {[%emt 0:00:13]} Nf6 {[%emt 0:00:29]} 4. e5 {[%emt 0:01:11]} Ne4 {[%emt 0:00:33]} 5. Ne2 {[%emt 0:01:15]} Qb6 {[%emt 0:01:42]} 6. d4 {[%emt 0:00:20]} e6 {[%emt 0:01:13]} 7. Nfg1 {[%emt 0:09:29]} f6 {[%emt 0:01:58]} 8. exf6 {[%emt 0:03:12]} Nxf6 {[%emt 0:05:51]} 9. Nf3 {[%emt 0:02:12]} c5 {[%emt 0:02:34]} 10. c3 {[%emt 0:07:52]} Nc6 {[%emt 0:00:19]} 11. a3 {[%emt 0:01:29]} Bd6 {[%emt 0:05:49]} 12. Ng3 {[%emt 0:04:44]} cxd4 {[%emt 0:08:31]} 13. cxd4 {[%emt 0:01:02]} Na5 {[%emt 0:05:27]} 14. Bd3 {[%emt 0:07:48]} Bd7 {[%emt 0:11:48]} 15. O-O {[%emt 0:01:15]} O-O {[%emt 0:02:31]} 16. Re1 {[%emt 0:01:14]} Nb3 {[%emt 0:03:52]} 17. Rb1 {[%emt 0:01:11]} Nxc1 {[%emt 0:03:35]} 18. Qxc1 {[%emt 0:00:41]} h6 {[%emt 0:00:16]} 19. Qd2 {[%emt 0:08:13]} Rac8 {[%emt 0:03:44]} 20. h3 {[%emt 0:04:56]} Bxg3 {[%emt 0:14:09]} 21. fxg3 {[%emt 0:00:24]} Ne4 {[%emt 0:00:15]} 22. Bxe4 {[%emt 0:08:09]} dxe4 {[%emt 0:00:08]} 23. Rxe4 {[%emt 0:00:06]} e5 {[%emt 0:00:08]} 24. Rxe5 {[%emt 0:08:02]} Bf5 {[%emt 0:01:21]} 25. Rc1 {[%emt 0:00:54]} Rxc1+ {[%emt 0:00:27]} 26. Qxc1 {[%emt 0:00:02]} Bxh3 {[%emt 0:00:29]} 27. Qc4+ {[%emt 0:01:28]} Kh8 {[%emt 0:00:48]} 28. gxh3 {[%emt 0:03:38]} Qxb2 {[%emt 0:04:43]} 29. Qd3 {[%emt 0:01:04]} Qc1+ {[%emt 0:00:41]} 30. Re1 {[%emt 0:01:02]} Rxf3 {[%emt 0:00:08]} 31. Qxf3 {[%emt 0:03:59]} 1/2-1/2

[Event "EYCC Open-U18 2019"]
[Site "Bratislava"]
[Date "2019.08.04"]
[Round "3.44"]
[White "Panko, Eduard"]
[Black "Hurdzan, Tomas"]
[Result "1/2-1/2"]
[ECO "A01"]
[WhiteElo "2024"]
[BlackElo "2231"]
[Annotator "NA"]
[PlyCount "37"]
[EventDate "2019.08.02"]
[EventType "swiss"]
[EventCountry "SVK"]
[SourceTitle "playchess.com"]
[Source "ChessBase"]
[SourceQuality "1"]
[TimeControl "40/5400+30:1800+30"]

1. b3 {[%emt 0:00:00]} d5 {[%emt 0:00:16]} 2. Bb2 {[%emt 0:00:00]} Nf6 {[%emt 0:00:21]} 3. e3 {[%emt 0:00:05]} c5 {[%emt 0:02:02]} 4. f4 {[%emt 0:00:55]} g6 {[%emt 0:00:26]} 5. Nf3 {[%emt 0:00:43]} Bg7 {[%emt 0:00:06]} 6. Bb5+ {[%emt 0:00:06]} Bd7 {[%emt 0:01:36]} 7. Bxd7+ {[%emt 0:00:15]} Nbxd7 {[%emt 0:00:18]} 8. O-O {[%emt 0:01:47]} O-O {[%emt 0:00:06]} 9. Qe1 {[%emt 0:04:02]} b5 {[%emt 0:07:03]} 10. d3 {[%emt 0:04:07]} Qb6 {[%emt 0:01:27]} 11. Nbd2 {[%emt 0:03:30]} Rac8 {[%emt 0:01:49]} 12. Ne5 {[%emt 0:02:37]} Nxe5 {[%emt 0:01:27]} 13. Bxe5 {[%emt 0:00:17]} c4 {[%emt 0:20:39]} 14. Bd4 {[%emt 0:04:57]} Qc7 {[%emt 0:05:33]} 15. Be5 {[%emt 0:09:07]} Qb7 {[%emt 0:03:44]} 16. Nf3 {[%emt 0:03:12]} cxd3 {[%emt 0:03:58]} 17. cxd3 {[%emt 0:00:15]} b4 {[%emt 0:00:22]} 18. Qd2 {[%emt 0:05:59]} Ne8 {[%emt 0:14:01]} 19. Rac1 {[%emt 0:03:47]} 1/2-1/2

[Event "EYCC Open-U18 2019"]
[Site "Bratislava"]
[Date "2019.08.04"]
[Round "3.45"]
[White "Marzo Pie, Xavier"]
[Black "Joensson, Jacob"]
[Result "0-1"]
[ECO "D35"]
[WhiteElo "2202"]
[BlackElo "1981"]
[Annotator "NA"]
[PlyCount "166"]
[EventDate "2019.08.02"]
[EventType "swiss"]
[EventCountry "SVK"]
[SourceTitle "playchess.com"]
[Source "ChessBase"]
[SourceQuality "1"]
[TimeControl "40/5400+30:1800+30"]

1. d4 {[%emt 0:00:00]} Nf6 {[%emt 0:00:00]} 2. c4 {[%emt 0:00:00]} e6 {[%emt 0:00:00]} 3. Nc3 {[%emt 0:00:00]} d5 {[%emt 0:00:00]} 4. cxd5 {[%emt 0:00:00]} exd5 {[%emt 0:00:00]} 5. Bg5 {[%emt 0:00:13]} Be7 {[%emt 0:00:04]} 6. e3 {[%emt 0:00:34]} c6 {[%emt 0:00:08]} 7. Qc2 {[%emt 0:00:09]} Nbd7 {[%emt 0:00:06]} 8. Bd3 {[%emt 0:00:33]} Nh5 {[%emt 0:00:10]} 9. Bxe7 {[%emt 0:00:40]} Qxe7 {[%emt 0:00:07]} 10. Nge2 {[%emt 0:23:32]} g6 {[%emt 0:03:28]} 11. h3 {[%emt 0:04:54]} Nb6 {[%emt 0:01:06]} 12. Rc1 {[%emt 0:09:15]} Ng7 {[%emt 0:09:50]} 13. O-O {[%emt 0:04:23]} Bf5 {[%emt 0:02:30]} 14. Nf4 {[%emt 0:06:06]} O-O {[%emt 0:03:09]} 15. Rfe1 {[%emt 0:02:38]} Rad8 {[%emt 0:07:52]} 16. b3 {[%emt 0:05:30]} Qf6 {[%emt 0:11:01]} 17. Rcd1 {[%emt 0:03:03]} Rfe8 {[%emt 0:04:11]} 18. Qd2 {[%emt 0:02:26]} Bxd3 {[%emt 0:03:29]} 19. Nxd3 {[%emt 0:00:16]} Nf5 {[%emt 0:00:22]} 20. a4 {[%emt 0:00:38]} a6 {[%emt 0:03:03]} 21. a5 {[%emt 0:02:50]} Nc8 {[%emt 0:03:34]} 22. Na4 {[%emt 0:01:05]} Re7 {[%emt 0:05:06]} 23. Nac5 {[%emt 0:00:13]} Ncd6 {[%emt 0:02:49]} 24. Qb4 {[%emt 0:01:16]} Ne4 {[%emt 0:02:52]} 25. Rc1 {[%emt 0:05:18]} Nfd6 {[%emt 0:02:08]} 26. Qb6 {[%emt 0:01:37]} Ra8 {[%emt 0:02:24]} 27. Rc2 {[%emt 0:01:28]} Kg7 {[%emt 0:02:37]} 28. Qb4 {[%emt 0:05:04]} h5 {[%emt 0:06:17]} 29. Rd1 {[%emt 0:07:00]} Nb5 {[%emt 0:09:04]} 30. Nxe4 {[%emt 0:01:00]} Rxe4 {[%emt 0:00:32]} 31. Ne5 {[%emt 0:00:11]} Qxe5 {[%emt 0:01:02]} 32. Qxb5 {[%emt 0:01:19]} axb5 {[%emt 0:00:15]} 33. dxe5 {[%emt 0:00:05]} Rxa5 {[%emt 0:00:16]} 34. Kf1 {[%emt 0:00:33]} Rxe5 {[%emt 0:00:57]} 35. Ke2 {[%emt 0:00:05]} Ra3 {[%emt 0:01:00]} 36. Rc3 {[%emt 0:00:53]} Ra2+ {[%emt 0:00:35]} 37. Rd2 {[%emt 0:00:04]} Rxd2+ {[%emt 0:00:00]} 38. Kxd2 {[%emt 0:00:03]} Re8 {[%emt 0:00:20]} 39. Kd3 {[%emt 0:00:17]} Ra8 {[%emt 0:00:43]} 40. Rc2 {[%emt 0:00:00]} Kf6 {[%emt 0:00:00]} 41. Kd4 {[%emt 0:00:38]} Ra3 {[%emt 0:02:12]} 42. b4 {[%emt 0:00:17]} Ke6 {[%emt 0:00:45]} 43. Kc5 {[%emt 0:00:03]} Kd7 {[%emt 0:00:30]} 44. Kb6 {[%emt 0:00:34]} Kc8 {[%emt 0:00:18]} 45. Rd2 {[%emt 0:00:06]} f5 {[%emt 0:01:28]} 46. Rd4 {[%emt 0:00:21]} Ra6+ {[%emt 0:00:22]} 47. Kc5 {[%emt 0:00:05]} Kc7 {[%emt 0:00:08]} 48. Rf4 {[%emt 0:00:11]} b6+ {[%emt 0:00:23]} 49. Kd4 {[%emt 0:00:04]} Kd6 {[%emt 0:00:08]} 50. g4 {[%emt 0:00:03]} c5+ {[%emt 0:00:14]} 51. Kc3 {[%emt 0:00:16]} hxg4 {[%emt 0:00:15]} 52. hxg4 {[%emt 0:00:04]} Ke5 {[%emt 0:00:21]} 53. gxf5 {[%emt 0:00:07]} gxf5 {[%emt 0:00:06]} 54. Rh4 {[%emt 0:00:06]} Ra3+ {[%emt 0:02:36]} 55. Kb2 {[%emt 0:00:13]} Ra4 {[%emt 0:00:11]} 56. Rh6 {[%emt 0:00:13]} Rxb4+ {[%emt 0:00:27]} 57. Kc3 {[%emt 0:00:05]} Ra4 {[%emt 0:00:56]} 58. Rxb6 {[%emt 0:00:11]} b4+ {[%emt 0:00:28]} 59. Kb3 {[%emt 0:01:38]} Ra3+ {[%emt 0:02:56]} 60. Kb2 {[%emt 0:00:34]} Rd3 {[%emt 0:00:17]} 61. Kc2 {[%emt 0:00:57]} Rc3+ {[%emt 0:00:29]} 62. Kd2 {[%emt 0:00:24]} d4 {[%emt 0:01:15]} 63. Rb8 {[%emt 0:00:28]} dxe3+ {[%emt 0:00:36]} 64. fxe3 {[%emt 0:00:06]} Ra3 {[%emt 0:00:22]} 65. Re8+ {[%emt 0:01:03]} Kd5 {[%emt 0:00:15]} 66. Rf8 {[%emt 0:00:16]} Ra2+ {[%emt 0:00:28]} 67. Kc1 {[%emt 0:00:25]} Ke4 {[%emt 0:00:34]} 68. Rc8 {[%emt 0:00:32]} Kxe3 {[%emt 0:01:09]} 69. Rxc5 {[%emt 0:00:03]} f4 {[%emt 0:00:17]} 70. Re5+ {[%emt 0:00:10]} Kf2 {[%emt 0:00:13]} 71. Re4 {[%emt 0:01:17]} f3 {[%emt 0:00:09]} 72. Rxb4 {[%emt 0:00:02]} Kf1 {[%emt 0:00:11]} 73. Kd1 {[%emt 0:00:16]} f2 {[%emt 0:00:23]} 74. Rg4 {[%emt 0:02:09]} Ra5 {[%emt 0:00:43]} 75. Rg8 {[%emt 0:02:48]} Rd5+ {[%emt 0:00:09]} 76. Kc2 {[%emt 0:00:04]} Ke2 {[%emt 0:00:04]} 77. Re8+ {[%emt 0:00:06]} Kf3 {[%emt 0:00:06]} 78. Rf8+ {[%emt 0:00:06]} Ke3 {[%emt 0:00:04]} 79. Kc3 {[%emt 0:01:46]} Rc5+ {[%emt 0:00:10]} 80. Kb4 {[%emt 0:00:10]} Rc1 {[%emt 0:00:06]} 81. Re8+ {[%emt 0:00:08]} Kd4 {[%emt 0:00:09]} 82. Rd8+ {[%emt 0:00:04]} Ke5 {[%emt 0:00:04]} 83. Re8+ {[%emt 0:00:06]} Kd6 {[%emt 0:00:04]} 0-1

[Event "EYCC Open-U18 2019"]
[Site "Bratislava"]
[Date "2019.08.04"]
[Round "3.46"]
[White "Johannsson, Birkir Isak"]
[Black "Gloser, David"]
[Result "1-0"]
[ECO "A05"]
[WhiteElo "1988"]
[BlackElo "2123"]
[Annotator "NA"]
[PlyCount "81"]
[EventDate "2019.08.02"]
[EventType "swiss"]
[EventCountry "SVK"]
[SourceTitle "playchess.com"]
[Source "ChessBase"]
[SourceQuality "1"]
[TimeControl "40/5400+30:1800+30"]

1. Nf3 {[%emt 0:00:00]} Nf6 {[%emt 0:00:06]} 2. c4 {[%emt 0:00:00]} g6 {[%emt 0:00:45]} 3. Nc3 {[%emt 0:00:00]} d5 {[%emt 0:04:10]} 4. cxd5 {[%emt 0:00:04]} Nxd5 {[%emt 0:01:34]} 5. Qb3 {[%emt 0:00:23]} Nb6 {[%emt 0:02:07]} 6. d4 {[%emt 0:00:10]} Bg7 {[%emt 0:01:32]} 7. e4 {[%emt 0:00:11]} O-O {[%emt 0:04:20]} 8. Be3 {[%emt 0:00:16]} Bg4 {[%emt 0:05:00]} 9. Rd1 {[%emt 0:00:21]} a5 {[%emt 0:09:35]} 10. Be2 {[%emt 0:02:45]} a4 {[%emt 0:02:09]} 11. Qc2 {[%emt 0:01:20]} Bxf3 {[%emt 0:04:35]} 12. Bxf3 {[%emt 0:15:14]} Nc6 {[%emt 0:05:19]} 13. e5 {[%emt 0:13:02]} Nb4 {[%emt 0:05:46]} 14. Qc1 {[%emt 0:02:53]} c6 {[%emt 0:04:58]} 15. a3 {[%emt 0:05:13]} N4d5 {[%emt 0:01:19]} 16. Bh6 {[%emt 0:00:21]} f5 {[%emt 0:11:32]} 17. h4 {[%emt 0:03:11]} f4 {[%emt 0:01:13]} 18. Bxg7 {[%emt 0:01:19]} Kxg7 {[%emt 0:00:06]} 19. Ne4 {[%emt 0:03:30]} Qc8 {[%emt 0:08:51]} 20. Qc2 {[%emt 0:06:35]} Qf5 {[%emt 0:03:27]} 21. h5 {[%emt 0:03:05]} Nc7 {[%emt 0:03:13]} 22. Qe2 {[%emt 0:01:50]} Rh8 {[%emt 0:02:24]} 23. Bg4 {[%emt 0:02:58]} Qf7 {[%emt 0:02:05]} 24. Ng5 {[%emt 0:01:50]} Qd5 {[%emt 0:00:50]} 25. h6+ {[%emt 0:01:21]} Kf8 {[%emt 0:01:02]} 26. O-O {[%emt 0:02:26]} Qg8 {[%emt 0:03:18]} 27. Qe4 {[%emt 0:04:18]} e6 {[%emt 0:00:44]} 28. Qxf4+ {[%emt 0:03:41]} Ke7 {[%emt 0:00:07]} 29. Qf6+ {[%emt 0:07:36]} Kd7 {[%emt 0:00:05]} 30. Nf7 Rf8 {[%emt 0:00:23]} 31. Qxh8 {[%emt 0:03:30]} Qxf7 {[%emt 0:00:06]} 32. Qg7 {[%emt 0:00:47]} Qxg7 {[%emt 0:00:08]} 33. hxg7 {[%emt 0:00:01]} Rg8 {[%emt 0:00:10]} 34. Rd3 {[%emt 0:03:12]} Rxg7 {[%emt 0:01:37]} 35. b3 {[%emt 0:00:49]} Rg8 {[%emt 0:01:50]} 36. Rb1 {[%emt 0:00:57]} Rb8 {[%emt 0:00:33]} 37. Bd1 {[%emt 0:00:41]} axb3 {[%emt 0:02:18]} 38. Rdxb3 {[%emt 0:00:32]} Nc4 {[%emt 0:00:05]} 39. Rxb7 {[%emt 0:01:00]} Rxb7 {[%emt 0:00:07]} 40. Rxb7 {[%emt 0:00:00]} Nxa3 {[%emt 0:00:00]} 41. Rb8 {[%emt 0:01:40]} 1-0

[Event "EYCC Open-U18 2019"]
[Site "Bratislava"]
[Date "2019.08.04"]
[Round "3.47"]
[White "Sadler, Michel"]
[Black "Nordquelle, Daniel"]
[Result "0-1"]
[ECO "D31"]
[WhiteElo "1766"]
[BlackElo "2181"]
[Annotator "NA"]
[PlyCount "66"]
[EventDate "2019.08.02"]
[EventType "swiss"]
[EventCountry "SVK"]
[SourceTitle "playchess.com"]
[Source "ChessBase"]
[SourceQuality "1"]
[TimeControl "40/5400+30:1800+30"]

1. d4 {[%emt 0:00:00]} d5 {[%emt 0:00:03]} 2. c4 {[%emt 0:00:00]} e6 {[%emt 0:00:04]} 3. Nc3 {[%emt 0:00:00]} c6 {[%emt 0:00:06]} 4. e3 {[%emt 0:00:00]} Nd7 {[%emt 0:00:37]} 5. Bd3 {[%emt 0:00:55]} f5 {[%emt 0:01:15]} 6. g4 {[%emt 0:00:43]} Ndf6 {[%emt 0:13:26]} 7. gxf5 {[%emt 0:01:19]} exf5 {[%emt 0:00:16]} 8. Qb3 {[%emt 0:00:55]} Bd6 {[%emt 0:04:11]} 9. Bd2 {[%emt 0:03:44]} Ne7 {[%emt 0:00:07]} 10. Nh3 {[%emt 0:02:09]} O-O {[%emt 0:07:03]} 11. O-O-O {[%emt 0:03:32]} Kh8 {[%emt 0:02:37]} 12. f3 {[%emt 0:10:05]} a5 {[%emt 0:24:55]} 13. Nf2 {[%emt 0:04:16]} dxc4 {[%emt 0:02:27]} 14. Bxc4 {[%emt 0:00:54]} b5 {[%emt 0:00:41]} 15. Bd3 {[%emt 0:01:32]} a4 {[%emt 0:06:30]} 16. Qc2 {[%emt 0:00:11]} Be6 {[%emt 0:01:38]} 17. e4 {[%emt 0:06:02]} Nd7 {[%emt 0:05:24]} 18. Bg5 {[%emt 0:04:54]} fxe4 {[%emt 0:05:23]} 19. Nfxe4 {[%emt 0:03:29]} Bb4 {[%emt 0:03:30]} 20. Nc5 {[%emt 0:02:39]} Bxc5 {[%emt 0:00:59]} 21. dxc5 {[%emt 0:00:26]} h6 {[%emt 0:00:03]} 22. Bh4 {[%emt 0:05:13]} Qe8 {[%emt 0:02:48]} 23. Rhe1 {[%emt 0:11:30]} Nxc5 {[%emt 0:02:24]} 24. Bf1 {[%emt 0:13:37]} Ng6 {[%emt 0:04:15]} 25. Bf2 {[%emt 0:00:59]} Nb7 {[%emt 0:00:38]} 26. Ne4 {[%emt 0:03:37]} Qf7 {[%emt 0:01:15]} 27. Nc5 {[%emt 0:00:48]} Nxc5 {[%emt 0:00:25]} 28. Bxc5 {[%emt 0:00:06]} Rfd8 {[%emt 0:00:42]} 29. Bd3 {[%emt 0:06:36]} Nf4 {[%emt 0:00:08]} 30. Be4 {[%emt 0:00:18]} Bxa2 {[%emt 0:00:28]} 31. Rg1 {[%emt 0:01:22]} Bb3 {[%emt 0:00:48]} 32. Rxd8+ {[%emt 0:00:23]} Rxd8 {[%emt 0:00:04]} 33. Qf2 {[%emt 0:00:41]} Nh3 {[%emt 0:00:43]} 0-1